Cogmind - Beta 16 @@@ ROGUE MODE // 2025.11.03 @ 18:34:48 Player: beans Result: Destroyed by G-47 Trooper with Particle Gun Performance ------------- Evolutions (2) 1000 Regions Visited (4) 800 Robots Destroyed (34) 170 Value Destroyed (959) 959 Prototype IDs (0) 0 Alien Tech Used (0) 0 Bonus (0) 0 TOTAL SCORE: 2929 Bonus ------- None Cogmind --------- Core Integrity 0/550 Matter 184/300 Energy 98/100 System Corruption 0% Temperature Warning (370) Movement Core (150) Ox2 Location -8/Materials Parts ------- > --- POWER (1) -------- (None) > --- PROPULSION (3) --- Armored Treads > --- UTILITY (5) ------ Hardened Medium Armor Plating > --- WEAPON (2) ------- (None) > --- INVENTORY (5) ---- Light Nuclear Core Transport Network Coupler Peak State ------------ > --- POWER ------------ (None) > --- PROPULSION ------- Light Treads > --- UTILITY ---------- Improved Heat Sink > --- WEAPON ----------- Bore Cannon Rocket Launcher > --- INVENTORY -------- Cargo Storage Unit Transport Network Coupler [Rating: 11] Favorites ----------- Power Light Ion Engine Engine Light Ion Engine Propulsion Aluminum Leg Treads Light Treads Leg Aluminum Leg Utility Improved Heat Sink Device Improved Heat Sink Storage Medium Storage Unit Protection Light Armor Plating Weapon Light Assault Rifle Energy Gun Field Laser Ballistic Gun Light Assault Rifle Ballistic Cannon Bore Cannon Launcher Rocket Launcher Build | -11 -10 -10 -9 -8 ------- Run | Yrd Mat Min Mat Mat Slots Evolved 4 | . . . 2 2 Power . | . . . . . Propulsion 1 | . . . 1 . Utility 3 | . . . 1 2 Weapon . | . . . . . Parts Attached 22 | 5 3 3 7 4 Power 3 | 1 . . 1 1 Engine 3 | 1 . . 1 1 Core . | . . . . . Reactor . | . . . . . Propulsion 6 | 2 . . 3 1 Treads 3 | . . . 2 1 Leg 3 | 2 . . 1 . Wheel . | . . . . . Hover . | . . . . . Flight . | . . . . . Utility 5 | . 3 . 1 1 Device 1 | . . . 1 . Storage 2 | . 2 . . . Processor . | . . . . . Hackware . | . . . . . Protection 2 | . 1 . . 1 Artifact . | . . . . . Weapon 8 | 2 . 3 2 1 Energy Gun 2 | . . . 1 1 Energy Cannon . | . . . . . Ballistic Gun 4 | 2 . 2 . . Ballistic Cannon 1 | . . 1 . . Launcher 1 | . . . 1 . Special Weapon . | . . . . . Impact Weapon . | . . . . . Slashing Weapon . | . . . . . Piercing Weapon . | . . . . . Special Melee Weapon . | . . . . . Unidentified Prototypes . | . . . . . Parts Lost 14 | . . 5 5 4 Power 2 | . . . 1 1 Propulsion 3 | . . 1 2 . Utility 1 | . . 1 . . Weapon 8 | . . 3 2 3 Highest Loss Streak 3 | . . 3 3 2 To Critical Strikes . | . . . . . Average Backups 2 | . . 4 3 2 Power . | . . . . . Propulsion . | . . . . . Utility 1 | . . 2 2 1 Weapon 1 | . . 2 1 . Tool/Special . | . . . . . Unused Backups 2 | . . . . 2 Power . | . . . . . Propulsion . | . . . . . Utility 2 | . . . . 2 Weapon . | . . . . . Tool/Special . | . . . . . Average Slot Usage (%) 38 | . 93 25 30 20 Engine 4 | . 14 2 1 3 Treads 3 | . . . 8 4 Leg 7 | . 28 5 1 . Device 3 | . . . 7 3 Storage 2 | . 11 2 . . Protection 3 | . 11 2 . 4 Energy Gun 1 | . . . 1 4 Ballistic Gun 8 | . 28 10 1 . Ballistic Cannon 2 | . . . 5 . Peak Build Rating 11 | 5 7 7 11 10 Average Rating 5 | 3 6 2 7 6 On Entrance 4 | . 5 7 1 8 Avg Prop Armor Cover (%) . | . . . . . Naked Turns 258 | . . 217 16 25 Heaviest Build 29 | 6 29 19 10 14 Greatest Support 40 | 20 20 20 40 20 Greatest Overweight (x) 3 | . 1 2 3 2 Average Overweight (x) . | . . . . . Largest Inventory Capacity 15 | 5 15 10 5 5 Average Capacity 6 | 5 10 5 5 5 Most Carried 5 | 5 4 5 5 5 Average Carried 3 | . . 4 4 2 Final Capacity 10 | 5 10 5 5 5 Final Carried 4 | . 4 4 4 2 Class Distribution -------------------- 95% | Mutant 4% | Scavenger-Mutant Dominant Class ---------------- Mutant | -10/Materials Mutant | -10/Mines Mutant | -9/Materials Mutant | -8/Materials Resources | -11 -10 -10 -9 -8 ----------- Run | Yrd Mat Min Mat Mat Matter Collected 925 | 172 195 91 257 210 Remotely . | . . . . . Salvage Created 1209 | . 238 6 601 364 Parts 75 | . 15 . 42 18 Haulers Intercepted 1 | . 1 . . . Recyclers Shooed 4 | . . . 4 . Parts Field Recycled . | . . . . . Retrieved Matter . | . . . . . Parts Self-Destructed . | . . . . . Prevented . | . . . . . Parts Restored . | . . . . . Kills | -11 -10 -10 -9 -8 ------- Run | Yrd Mat Min Mat Mat Combat Hostiles Destroyed 27 | . 7 1 13 6 Guns 17 | . 7 . 4 6 Cannons 7 | . . 1 6 . AOE 3 | . . . 3 . Classes Destroyed 10 | . 3 1 5 1 Builder 2 | . . . 1 1 Tunneler 1 | . . . 1 . Hauler 1 | . 1 . . . Recycler 3 | . . . 1 2 Watcher 1 | . . . 1 . Swarmer 6 | . 3 . . 3 Grunt 13 | . 4 . 8 1 Sentry 6 | . . . 5 1 Hunter 1 | . . . . 1 Assembled 1 | . . 1 . . Best Kill Streak 5 | . 4 1 5 3 Combat Bots Only 4 | . 4 1 3 3 Max Kills in Single Turn 2 | . 1 1 2 1 Gunslinging . | . . . . . Exploded 2 | . . . 2 . Melee . | . . . . . Uniques/NPCs Destroyed . | . . . . . Combat | -11 -10 -10 -9 -8 -------- Run | Yrd Mat Min Mat Mat Hostile Shots Fired 288 | . 48 24 73 143 Missed 77 | . 21 3 13 40 Hits 211 | . 27 21 60 103 Projectile 211 | . 27 21 60 103 AOE 12 | . . 12 . . Critical Strikes 5 | . 2 . 2 1 Part Disruptions 1 | . . 1 . . Damage Taken 2869 | . 229 617 918 1105 Core 1062 | . 14 173 319 556 Absorbed by Shields . | . . . . . Regen/Repaired (Parts) 138 | . . . 138 . Core Remaining (%) 48 | 100 . 25 20 . Volleys Fired 152 | . 27 15 74 36 Largest 2 | . 2 2 2 1 Hottest 89 | . 40 68 89 63 Shots Fired 189 | . 54 22 77 36 Gun 119 | . 54 12 20 33 Cannon 61 | . . 10 49 2 Launcher 9 | . . . 8 1 Special . | . . . . . Kinetic 133 | . 54 22 55 2 Thermal 47 | . . . 14 33 Explosive 9 | . . . 8 1 Electromagnetic . | . . . . . Robot Hit Streak 12 | . 8 2 12 6 Robot Miss Streak 7 | . 5 5 7 3 Penetration Max 1 | . . . 1 . Secondary Targets 2 | . 2 . . . Max Gunslinging Chain 1 | . 1 . . . Shots Hit Robots 103 | . 33 6 39 25 Core Hits 63 | . 15 4 30 14 Critical Kills 7 | . 1 1 4 1 Critical Parts Destroyed 10 | . . 1 9 . Critical Strikes 19 | . 1 2 14 2 Burn 2 | . . . 1 1 Destroy 17 | . 1 2 13 1 Melee Attacks . | . . . . . Impact . | . . . . . Slashing . | . . . . . Piercing . | . . . . . Sneak Attacks . | . . . . . Combat Hostiles . | . . . . . Follow-up Attacks . | . . . . . Damage Inflicted 2083 | . 325 93 1105 560 Guns 989 | . 325 57 218 389 Cannons 583 | . . 36 501 46 Explosions 472 | . . . 386 86 Melee . | . . . . . Ramming 39 | . . . . 39 Kinetic 998 | . 325 93 534 46 Thermal 574 | . . . 185 389 Explosive 472 | . . . 386 86 Electromagnetic . | . . . . . Impact . | . . . . . Slashing . | . . . . . Piercing . | . . . . . Highest Corruption 1 | . . . 1 . Average Corruption 1 | . . . 1 . Corruption Purged . | . . . . . Corruption Blocked . | . . . . . Effects 4 | . . . 4 . Matter Fused 1 | . . . 1 . Energy Discharges 2 | . . . 2 . Data Loss (major) 1 | . . . 1 . Overload Shots . | . . . . . Overflow Damage 20 | . . . 20 . Projectiles . | . . . . . Explosions 20 | . . . 20 . Melee . | . . . . . Knockbacks 6 | . . . 6 . Impact . | . . . . . Kinetic 4 | . . . 4 . Secondary 2 | . . . 2 . Self-Inflicted Damage 67 | . . . 49 18 Shots 1 | . . . 1 . Rammed 9 | . . . . 9 Targets Rammed 9 | . . . . 9 Kicked . | . . . . . Crushed . | . . . . . Highest Temperature 387 | . 18 36 102 387 Average Temperature 74 | . 6 14 37 146 Received Heat Transfer 743 | . 36 20 372 315 Effects 1 | . . . . 1 Short Circuit 1 | . . . . 1 Siege Activations . | . . . . . Martial Activations . | . . . . . Shielding Activations . | . . . . . Robots Disrupted . | . . . . . Combat Hostiles . | . . . . . Robots Corrupted . | . . . . . Combat Hostiles . | . . . . . Parts Fried . | . . . . . Impact Corruptions . | . . . . . Robots Melted . | . . . . . Combat Hostiles . | . . . . . Parts Melted 6 | . . . 1 5 Heat Transferred 1480 | . . . 555 925 Parts Sabotaged . | . . . . . Parts Stolen . | . . . . . Parts Stripped . | . . . . . Power Chain Reactions . | . . . . . Alert | -11 -10 -10 -9 -8 ------- Run | Yrd Mat Min Mat Mat Maximum Alert Level 1 | . . . 1 1 Low Security (%) 85 | 100 100 100 69 72 Level 1 14 | . . . 30 27 Level 2 . | . . . . . Level 3 . | . . . . . Level 4 . | . . . . . Level 5 . | . . . . . High Security . | . . . . . Max Security . | . . . . . Peak Influence 275 | . 120 41 275 261 Initial 109 | . . 41 . 109 Average 82 | . 37 6 156 153 Influence Increases 1041 | . 167 64 548 262 Destroy 0b10 Robot/C 520 | . 140 . 260 120 Destroy 0b10 Robot/NC 40 | . 5 . 20 15 Destroy Leader 154 | . 22 . 92 40 Successful Hack 4 | . . . 4 . Disable Machine 60 | . . . 60 . Destroy Structure 98 | . . 4 82 12 Partial Spotted 15 | . . . . 15 Lose Combat Pursuer 150 | . . 60 30 60 Influence Decreases 800 | . 60 171 288 281 Entered New Map 217 | . . 66 . 151 Time Decay 502 | . 60 104 248 90 Lost Part 81 | . . 1 40 40 Squads Dispatched 8 | . 3 . 4 1 Investigation 2 | . . . 2 . Extermination . | . . . . . Reinforcement 6 | . 3 . 2 1 Assault . | . . . . . Garrison . | . . . . . Intercept . | . . . . . Searches Triggered . | . . . . . Construction Impeded . | . . . . . Haulers Reinforced . | . . . . . Active Scanning Responses . | . . . . . Cargo Convoy Interrupts . | . . . . . Stealth | -11 -10 -10 -9 -8 --------- Run | Yrd Mat Min Mat Mat Distress Signals 3 | . . . 2 1 Communications Jammed . | . . . . . Distress Signals . | . . . . . Times Spotted 65 | . 16 12 21 16 Peak Tracking Total 9 | . 5 6 6 9 Tactical Retreats 6 | . . 3 2 1 Traps | -11 -10 -10 -9 -8 ------- Run | Yrd Mat Min Mat Mat Traps Triggered 1 | . . . 1 . Indirectly . | . . . . . Trap Hack Attempts . | . . . . . Triggered . | . . . . . Disarmed . | . . . . . Reprogrammed . | . . . . . Reused . | . . . . . Traps Extracted . | . . . . . Installed . | . . . . . Triggered . | . . . . . Machines | -11 -10 -10 -9 -8 ---------- Run | Yrd Mat Min Mat Mat Machines Disabled 4 | . . . 4 . Max in Single Turn 1 | . . . 1 . Machines Repaired . | . . . . . Machines Dismantled . | . . . . . Machines Sabotaged . | . . . . . Overloaded Fab Kills . | . . . . . Hacking | -11 -10 -10 -9 -8 --------- Run | Yrd Mat Min Mat Mat Machines Accessed 3 | . . . 3 . Terminals 2 | . . . 2 . Fabricators . | . . . . . Repair Stations 1 | . . . 1 . Recycling Units . | . . . . . Scanalyzers . | . . . . . Garrison Access . | . . . . . Total Hacks 8 | . . . 8 . Successful 4 | . . . 4 . Failed 4 | . . . 4 . Catastrophic 2 | . . . 2 . Database Lockouts . | . . . . . Manual . | . . . . . Terminals 5 | . . . 5 . Fabricators . | . . . . . Repair Stations 3 | . . . 3 . Recycling Units . | . . . . . Scanalyzers . | . . . . . Garrison Access . | . . . . . Terminal Hacks 2 | . . . 2 . Record 1 | . . . 1 . Terminal Index 1 | . . . 1 . Fabricator Hacks . | . . . . . Repair Station Hacks 2 | . . . 2 . Scan Component 1 | . . . 1 . Repair 1 | . . . 1 . Recycling Unit Hacks . | . . . . . Scanalyzer . | . . . . . Garrison Access Hacks . | . . . . . Unauthorized Hacks . | . . . . . Terminals . | . . . . . Fabricators . | . . . . . Repair Stations . | . . . . . Recycling Units . | . . . . . Scanalyzers . | . . . . . Garrison Access . | . . . . . Data Cores Recovered . | . . . . . Used . | . . . . . Hacking Detections 1 | . . . 1 . Full Trace Events 1 | . . . 1 . Feedback Events 1 | . . . 1 . Corruption 1 | . . . 1 . Feedback Blocked . | . . . . . Robot Schematics Acquired . | . . . . . Robots Built . | . . . . . Authchips . | . . . . . Time . | . . . . . Total Robot Build Rating . | . . . . . Part Schematics Acquired . | . . . . . Parts Built . | . . . . . Authchips . | . . . . . Time . | . . . . . Total Part Build Rating . | . . . . . Part Studies Acquired . | . . . . . Parts Repaired 1 | . . . 1 . Time 50 | . . . 50 . Parts Recycled . | . . . . . Recycled Matter . | . . . . . Retrieved Matter . | . . . . . Retrieved Components . | . . . . . Parts Scanalyzed . | . . . . . Part Schematics Acquired . | . . . . . Parts Damaged . | . . . . . Bothacking | -11 -10 -10 -9 -8 ------------ Run | Yrd Mat Min Mat Mat Used RIF Installer . | . . . . . Robots Hacked . | . . . . . Non-combat . | . . . . . Combat . | . . . . . Robot Hacks Applied . | . . . . . Relay Couplers Released . | . . . . . Fabnet Peak Effective % . | . . . . . Robots Rewired . | . . . . . Allies Hacked . | . . . . . Hacks Repelled . | . . . . . Allies | -11 -10 -10 -9 -8 -------- Run | Yrd Mat Min Mat Mat Total Allies . | . . . . . Largest Group . | . . . . . Highest-Rated Group . | . . . . . Highest-Rated Ally . | . . . . . Total Orders . | . . . . . Ally Attacks . | . . . . . Total Damage . | . . . . . Kills . | . . . . . Allies Corrupted . | . . . . . Allies Melted . | . . . . . Intel | -11 -10 -10 -9 -8 ------- Run | Yrd Mat Min Mat Mat Active Infowar (turns) . | . . . . . Robot Analysis Total . | . . . . . Derelict Logs Recovered 1 | . . 1 . . Drone Launches . | . . . . . Drone Recoveries . | . . . . . Exploration | -11 -10 -10 -9 -8 ------------- Run | Yrd Mat Min Mat Mat Turns Passed 1689 | 45 274 563 613 194 Spaces Moved 1155 | 41 137 516 318 143 Core 702 | 19 . 439 117 127 Treads 177 | . . . 161 16 Legs 276 | 22 137 77 40 . Wheels . | . . . . . Hover . | . . . . . Flight . | . . . . . Fastest Speed 50 | 50 120 50 50 50 Average Speed 87 | 87 136 62 116 66 Slowest Speed 200 | 120 190 150 200 170 Overloaded Moves . | . . . . . Propulsion Burnouts . | . . . . . Robots Hopped . | . . . . . Potential Cave-ins . | . . . . . Cave-ins Triggered 1 | . . . 1 . Exploration Rate (%) 30 | 3 31 60 44 16 Regions Visited 4 Branch Regions 1 Pre-discovered Areas . | . . . . . Known Exits Taken . | . . . . . Unknown Exits Taken 4 | 1 1 1 1 . Scrap Searched 2 | . . 2 . . Spaces Dug . | . . . . . Terrain Destroyed 101 | . . 5 85 11 Melee . | . . . . . Projectile 32 | . . 5 27 . AOE 69 | . . . 58 11 Terrain Rammed . | . . . . . Walls Destroyed . | . . . . . Machines Disabled . | . . . . . Actions | -11 -10 -10 -9 -8 --------- Run | Yrd Mat Min Mat Mat Total 1655 | 50 176 736 485 208 Wait 281 | . 1 196 78 6 Move 1151 | 40 136 515 317 143 Hop . | . . . . . Pick Up 22 | 5 6 2 4 5 Fast Attach 4 | . . . 4 . Attach 23 | 5 4 3 5 6 Detach 6 | . 2 1 2 1 Swap . | . . . . . Drop 7 | . . 4 1 2 Fire 152 | . 27 15 74 36 Melee . | . . . . . Ram 9 | . . . . 9 Kick . | . . . . . Crush . | . . . . . Escape Stasis . | . . . . . Rewire . | . . . . . Trap . | . . . . . Miscellaneous . | . . . . . Route ------- -11/Scrapyard -10/Materials -10/Mines -9/Materials (discovered 2 exits: [*Mat] / [*Min]) -8/Materials History --------- Turn | Location | Event 5 | -11/Scrapyard | Discovered new exit (range 16) 46 | -11/Scrapyard | Entered Materials 214 | -10/Materials | Discovered new exit (range 12) 303 | -10/Materials | Build established: Mutant 320 | -10/Materials | Entered Mines 329 | -10/Mines | Discovered new exit (range 14) 391 | -10/Mines | Assembled infested the area 396 | -10/Mines | Assisted by a Guerilla fighting off Assembled 452 | -10/Mines | Lost 3 parts (1n1u1w) 580 | -10/Mines | Core integrity fell below 50% 883 | -10/Mines | Entered Materials 883 | -9/Materials | Evolved 2 slots: Propulsion x1, Utility x1 1098 | -9/Materials | Lost 3 parts (1p1n1w) 1166 | -9/Materials | Repaired Bore Cannon 1236 | -9/Materials | Discovered new exit (range 13) 1407 | -9/Materials | Discovered new exit (range 16) 1433 | -9/Materials | Core integrity fell below 50% 1462 | -9/Materials | Crushed by falling debris 1496 | -9/Materials | Entered another Materials area 1496 | -8/Materials | Evolved 2 slots: Utility x2 1563 | -8/Materials | Core integrity fell below 50% 1618 | -8/Materials | Core integrity fell below 20% 1690 | -8/Materials | Destroyed by G-47 Trooper with Particle Gun Last Messages --------------- Slug penetrates Wall. H-55 Commando destroyed. K-01 Serf collects debris. W-25 Informer sends out distress signal. K-01 Serf collects debris. Acquired Lgt. Nuclear Core. K-01 Serf collects debris. U-05 Engineer builds a Wall. G-47 Trooper suffers critical hit (Burn). G-47 Trooper heat damages Aluminum Leg, Particle Gun, Imp. Heat Sink. Imp. Heat Sink melted. Aluminum Leg melted. G-47 Trooper destroyed. Critical hit (Burn: +37). Lgt. Ion Engine destroyed. Arm. Treads broken. Overheating: Short circuit. Field Laser destroyed. Acquired 102 matter. Map ----- +----------------------------------------------------+ | ?????????????????????????????????????????????????? | | ?????????????????????????????????????????????????? | | ?????????????????????????????????????????????????? | | ?????????????????????????????????????????????????? | | ?????????????????????????????????????????????????? | | ?????????????????????????????????????????????????? | | ?????????????????????????????????????????????????? | | ?????????????????????????????????????????????????? | | ?????????????????????????????????????????????????? | | ?????????????????????????????????????????????????? | | ?????????????????????????????????????????????????? | | ?????????????????????????????????????????????????? | | ??????????????????????????????????? ?????????????? | | ?????????????????????????????????? ! ????????????? | | ????????????????????????????????? ????????????? | | ???????????????????????????????? ????????????? | | ??????????????????????????????? ????????????? | | ???????????????############### "???????????? | | ???????????????# """ # ???????????? | | ???????????????# "R"! # ???????????? | | ???????????????# "! # ???????????????? | | ???????????????# * = =+% #??????????????????????? | | ???????????????#=* [ =# #??????????????????????? | | ???????????????#=%== # #??????????????????????? | | ???????????????#+###### ! ##?????????????????????? | | ????????????#### ##### g@ ###########???????????? | | ????????? k #???????????? | | ????????? #???????????? | | ????????? #???????????? | | ?????????#########+### ####### #???????????? | | ?????????????????????#######?????# #???????????? | | ?????????????????????????????????# #???????????? | | ???????????????????????####??????# #???????????? | | ???????????????????????# ????# #???????????? | | ???????????????????????# ??# #???????????? | | ???????????????????????# # #???????????? | | ???????????????????????# + +???????????? | | ???????????????????????# # #???????????? | | ???????????????????????# ??# #???????????? | | ???????????????????????# ????# ############# | | ???????????????????????# ??????# | | ???????????????????????##????????# | | ?????????????????????????######### | | ?????????????????????????# + ##########/## | | ?????????????????????????# # #??????? ??? | | ?????????????????????????#!! ] # #??????# ???? | | ?????????????????????????#!! # ########????? | | ?????????????????????????# * [ # # #????? | | ?????????????????????????######### # #????? | | ??????????????????????????######## # #????? | +----------------------------------------------------+ Best States ------------- Heat Dissipation 45 Energy Generation 12 Energy Capacity 265 Matter Stores 300 Matter Capacity 300 Sight Range 16 Terrain Scan Density 10 Armor Coverage 225 Evasion (%) 55 Recoil Reduction 2 Item Schematics ----------------- None Robot Schematics ------------------ None Fabricated ------------ Nothing Repaired ---------- Bore Cannon | 16% | -9/Materials Studied --------- None Alien Tech Used ----------------- None Achievements -------------- None Challenges ------------ None Game ------ Seed NetworkContainmentLeg Manual? 0 Play Time 00:16:55 Cumulative 204.3 hours Start 2025.11.02 @ 12:51:40 End 2025.11.03 @ 18:34:48 Sessions 1 Manual Loads 0 Difficulty Rogue Special Mode None Game No. 597 Rogue 596 Adventurer 1 Explorer 0 Win Type - Total 0 Types 0/0/0/0/0/0/0/0/0/0 Lore% 64 Gallery% 61 Achievement% 36 Wizard Run 0 Options --------- Layout 1 ASCII 0 Keyboard 0 Movement Mouse Keybinds 0 Fullscreen 1 Font 24/Smallcaps Map View 50x35 Zoom Use 0% Tactical HUD 0 Map Filters NONE Filters NONE Steam 1 RUN: bbb8e3ca-f062-43f6-9d16-3f5b935233d4